bitfinex/quotes_BTCUSD_20260104
["timestamp","ask_amount","ask_price","bid_price","bid_amount"]
[1767534751480,0.01096876,91168.0,91165.0,0.04702887]
[1767534751669,0.05484322,91169.0,91168.0,0.04802787]
[1767534751919,0.08773056,91171.0,91168.0,0.04702887]
[1767534752272,0.0328884,91171.0,91168.0,0.04702887]
[1767534752625,0.02192,91171.0,91168.0,0.04702887]
[1767534752838,0.020921,91171.0,91167.0,0.01096888]
[1767534753048,0.0318894,91171.0,91168.0,0.04044925]
[1767534753379,0.020921,91171.0,91168.0,0.04044925]
[1767534755675,0.020921,91171.0,91169.0,0.04833032]
[1767534756208,0.23032413,91176.0,91165.0,0.01096912]
[1767534756209,0.13166557,91196.0,91180.0,0.04833032]
[1767534756408,0.01580151,91184.0,91183.0,0.04833032]
[1767534756750,0.01096695,91183.0,91178.0,0.01096755]
[1767534756950,0.05729994,91183.0,91178.0,0.01096755]
[1767534757366,0.04633299,91181.0,91177.0,0.01096767]
[1767534757532,0.05730018,91181.0,91176.0,0.06580624]
[1767534757698,0.05730018,91181.0,91177.0,0.01096767]
[1767534757936,0.05730054,91178.0,91172.0,0.0548408]
[1767534758181,0.0658052,91179.0,91178.0,0.04833032]
[1767534759993,0.0658042,91180.0,91178.0,0.04833032]
[1767534760198,0.01096731,91180.0,91178.0,0.04833032]
[1767534761183,0.06580395,91180.0,91178.0,0.04833032]
[1767534761382,0.05483718,91179.0,91178.0,0.04833032]
[1767534761708,0.06580395,91180.0,91178.0,0.04833032]
[1767534762065,0.01096731,91180.0,91178.0,0.04833032]
[1767534762560,0.01096719,91181.0,91180.0,0.000999]
[1767534762765,0.01096719,91181.0,91178.0,0.04833032]
[1767534763380,0.06580323,91181.0,91176.0,0.01096779]
[1767534765782,0.01096731,91180.0,91175.0,0.06580745]
[1767534766182,0.06580323,91181.0,91176.0,0.01096779]
[1767534767062,0.01096731,91180.0,91175.0,0.06580745]
[1767534768241,0.01096731,91180.0,91176.0,0.04833032]
[1767534768561,0.01096743,91179.0,91176.0,0.04833032]
[1767534770175,0.01096791,91175.0,91170.0,0.04833032]
[1767534770530,0.01096803,91174.0,91170.0,0.04833032]
[1767534770728,0.01096815,91173.0,91170.0,0.04833032]
[1767534771163,0.06580868,91174.0,91170.0,0.04833032]
[1767534771503,0.01096803,91174.0,91170.0,0.04833032]
[1767534771785,0.06580897,91173.0,91170.0,0.04833032]
[1767534771997,0.01096803,91174.0,91170.0,0.04833032]
[1767534772224,0.01096791,91175.0,91171.0,0.04833032]
[1767534772424,0.06580751,91175.0,91171.0,0.04833032]
[1767534772727,0.01096791,91175.0,91171.0,0.04833032]
[1767534773032,0.06580758,91175.0,91171.0,0.04833032]
[1767534774018,0.01096791,91175.0,91171.0,0.04833032]
[1767534774768,0.06580751,91175.0,91171.0,0.04833032]
[1767534776213,0.01096779,91176.0,91171.0,0.06581028]
[1767534776422,0.06580622,91177.0,91171.0,0.06581028]
[1767534776423,0.01096767,91177.0,91172.0,0.05484129]
[1767534776647,0.06580467,91179.0,91177.0,0.000999]
[1767534776798,0.06580467,91179.0,91172.0,0.06580956]
[1767534776799,0.06580467,91179.0,91173.0,0.06580888]
[1767534777003,0.01096755,91178.0,91174.0,0.04833032]
[1767534777321,0.06580539,91178.0,91174.0,0.04833032]
[1767534777523,0.06571489,91178.0,91174.0,0.04833032]
[1767534777742,0.01087705,91178.0,91174.0,0.04833032]
[1767534777957,0.06580613,91177.0,91174.0,0.04833032]
[1767534778157,0.01096767,91177.0,91174.0,0.04833032]
[1767534778377,0.06571494,91178.0,91174.0,0.04833032]
[1767534778738,0.01096767,91177.0,91174.0,0.04833032]
[1767534778954,0.06571494,91178.0,91174.0,0.04833032]
[1767534779690,0.06580466,91179.0,91174.0,0.05929835]
[1767534780331,0.06580466,91179.0,91174.0,0.11413846]
[1767534780657,0.06580393,91180.0,91179.0,0.000999]
[1767534781063,0.06580393,91180.0,91175.0,0.01096791]
[1767534781267,0.01096719,91181.0,91176.0,0.01096779]
[1767534781467,0.01096719,91181.0,91176.0,0.06580657]
[1767534781670,0.01096695,91183.0,91177.0,0.06580605]
[1767534781901,0.00996819,91181.0,91175.0,0.06580693]
[1767534782097,0.06580291,91182.0,91177.0,0.01096767]
[1767534782337,0.01096719,91181.0,91176.0,0.01096779]
[1767534782539,0.06580291,91182.0,91177.0,0.01096767]
[1767534782731,0.01096707,91182.0,91177.0,0.065806]
[1767534782943,0.06580189,91183.0,91178.0,0.01096755]
[1767534785158,0.01096719,91181.0,91176.0,0.11479397]
[1767534785356,0.00842376,91183.0,91182.0,0.01096707]
[1767534785560,0.00842376,91183.0,91182.0,0.04898763]
[1767534785728,0.00842376,91183.0,91182.0,0.10382301]
[1767534786106,0.00842376,91183.0,91182.0,0.05483538]
[1767534786588,0.00572161,91188.0,91184.0,0.01096683]
[1767534786730,0.02192,91186.0,91185.0,0.04898763]
[1767534786931,0.02192,91186.0,91185.0,0.10382121]
[1767534787536,0.02192,91186.0,91185.0,0.05483358]
[1767534788012,0.00572161,91188.0,91187.0,0.05483237]
[1767534788221,0.00572161,91188.0,91186.0,0.05483297]
[1767534789261,0.00576906,91188.0,91186.0,0.05483297]
[1767534791470,0.00576906,91188.0,91187.0,0.05483237]
[1767534791813,0.00576906,91188.0,91186.0,0.05483297]
[1767534792853,0.00576906,91188.0,91187.0,0.05483237]
[1767534793152,0.00576906,91188.0,91186.0,0.05483297]
[1767534794521,0.00576906,91188.0,91187.0,0.10382]
[1767534794725,0.01096491,91200.0,91194.0,0.06579373]
[1767534794959,0.000999,91194.0,91192.0,0.05482931]
[1767534795102,0.000999,91194.0,91191.0,0.01096599]
[1767534795304,0.01096515,91198.0,91193.0,0.01096575]
[1767534795542,0.06579106,91198.0,91193.0,0.01096575]
[1767534796274,0.06579106,91198.0,91192.0,0.01096587]
[1767534796275,0.000999,91193.0,91192.0,0.01096587]
[1767534796425,0.06579139,91198.0,91193.0,0.01096575]
[1767534796626,0.01096503,91199.0,91195.0,0.01096551]
[1767534796840,0.02192,91197.0,91194.0,0.06579329]
[1767534797402,0.02192,91197.0,91194.0,0.0657936]
[1767534797572,0.02192,91197.0,91194.0,0.01096563]
[1767534797994,0.02192,91197.0,91194.0,0.06579325]
[1767534798749,0.06578998,91200.0,91195.0,0.01096551]
[1767534798948,0.02192,91199.0,91195.0,0.01096551]
[1767534799176,0.02192,91199.0,91198.0,0.13166557]
[1767534799375,0.01096467,91202.0,91198.0,0.13066657]
[1767534799633,0.01111615,91203.0,91198.0,0.14163172]
[1767534799837,0.01096467,91202.0,91198.0,0.13066657]
[1767534800119,0.01096467,91202.0,91199.0,0.04898763]
[1767534800678,0.06593921,91203.0,91199.0,0.04898763]
[1767534801311,0.01096467,91202.0,91199.0,0.04898763]
[1767534801728,0.06593921,91203.0,91199.0,0.04898763]
[1767534801889,0.01096467,91202.0,91199.0,0.04898763]
[1767534803643,0.06578809,91202.0,91199.0,0.04898763]
[1767534804046,0.01096467,91202.0,91199.0,0.04898763]
[1767534804448,0.01096467,91202.0,91198.0,0.13066657]
[1767534804900,0.01096479,91201.0,91198.0,0.13066657]
[1767534805064,0.01096479,91201.0,91196.0,0.11477888]
[1767534805264,0.01096479,91201.0,91192.0,0.10298459]
[1767534805485,0.06578843,91202.0,91201.0,0.000999]
[1767534805684,0.01578843,91202.0,91201.0,0.04998663]
[1767534805868,0.01578843,91202.0,91201.0,0.000999]
[1767534806067,0.01578843,91202.0,91197.0,0.01096527]
[1767534806407,0.04934278,91202.0,91197.0,0.01096527]
[1767534806767,0.06030757,91201.0,91197.0,0.01096527]
[1767534807492,0.04834378,91201.0,91198.0,0.01096515]
[1767534809547,0.04834378,91201.0,91193.0,0.06579335]
[1767534809724,0.05996603,91199.0,91195.0,0.01096551]
[1767534809935,0.05996603,91199.0,91194.0,0.01096563]
[1767534810316,0.04698334,91197.0,91194.0,0.06579369]
[1767534810962,0.04698334,91197.0,91195.0,0.0548275]
[1767534811364,0.06578884,91201.0,91197.0,0.04990114]
[1767534811687,0.06578884,91201.0,91197.0,0.04890214]
[1767534812065,0.01096479,91201.0,91197.0,0.05986741]
[1767534812294,0.05497443,91203.0,91201.0,0.000999]
[1767534812446,0.05497443,91203.0,91199.0,0.01096503]
[1767534812447,0.01111615,91203.0,91199.0,0.01096503]
[1767534812652,0.01111615,91203.0,91198.0,0.06579071]
[1767534813508,0.04698334,91202.0,91198.0,0.06579071]
[1767534813662,0.04698334,91202.0,91199.0,0.06578993]
[1767534813865,0.04598434,91202.0,91198.0,0.06579071]
[1767534814065,0.04598434,91202.0,91198.0,0.06363883]
[1767534814486,0.0001516,91203.0,91198.0,0.06363883]
[1767534814686,0.04581985,91202.0,91198.0,0.06363883]
[1767534814952,0.04644846,91199.0,91198.0,0.00881327]
[1767534815151,0.00062861,91199.0,91198.0,0.06363903]
[1767534815390,0.06593894,91203.0,91199.0,0.04501923]
[1767534815981,0.06593894,91203.0,91198.0,0.06363903]
[1767534816158,0.01096467,91202.0,91197.0,0.06579056]
[1767534816365,0.06593894,91203.0,91198.0,0.01096515]
[1767534816615,0.000999,91198.0,91196.0,0.06579231]
[1767534817194,0.01096479,91201.0,91197.0,0.04501923]
[1767534818072,0.000999,91197.0,91195.0,0.0657925]
[1767534818286,0.01096491,91200.0,91195.0,0.0657925]
[1767534818487,0.06578891,91201.0,91196.0,0.01096539]
[1767534818714,0.04581985,91200.0,91197.0,0.00059783]
[1767534818920,0.06578891,91201.0,91197.0,0.00059783]
[1767534819304,0.05678476,91200.0,91197.0,0.00059783]
[1767534819507,0.04581985,91200.0,91197.0,0.00059783]
[1767534819700,0.04581985,91200.0,91197.0,0.0663894]
[1767534820109,0.01096467,91202.0,91197.0,0.0115631]
[1767534820738,0.06578821,91202.0,91197.0,0.0115631]
[1767534821109,0.01096467,91202.0,91197.0,0.0115631]
[1767534822149,0.04384,91219.0,91197.0,0.0115631]
[1767534822150,0.0001516,91239.0,91198.0,0.04501923]
[1767534822346,0.0001516,91239.0,91202.0,6.9e-05]
[1767534822347,0.0548224,91204.0,91202.0,6.9e-05]
[1767534822602,0.06586987,91204.0,91202.0,6.9e-05]
[1767534822933,0.06586987,91204.0,91198.0,0.05598438]
[1767534823133,8.304e-05,91204.0,91199.0,0.01096503]
[1767534823371,8.304e-05,91204.0,91200.0,0.01096491]
[1767534823583,8.304e-05,91204.0,91201.0,0.01096479]
[1767534823767,8.304e-05,91204.0,91201.0,0.06578868]
[1767534824352,1.404e-05,91204.0,91203.0,0.04501923]
[1767534824663,0.08770371,91208.0,91204.0,0.04501923]
[1767534824870,0.02192,91208.0,91204.0,0.04501923]
[1767534825071,0.03288395,91208.0,91204.0,0.04501923]
[1767534825269,0.01096407,91207.0,91201.0,0.06578868]
[1767534825453,0.01096407,91207.0,91202.0,0.0559839]
[1767534825784,0.08770395,91208.0,91202.0,0.0559839]
[1767534825987,0.01096407,91207.0,91202.0,0.04501923]
[1767534827443,0.08770395,91208.0,91202.0,0.0559839]
[1767534827569,0.01096407,91207.0,91202.0,0.04501923]
[1767534828624,0.08770395,91208.0,91207.0,0.04501923]
[1767534828625,0.02192,91208.0,91207.0,0.04501923]
[1767534829002,0.02192,91208.0,91207.0,0.04397498]
[1767534829723,0.06578242,91210.0,91207.0,0.04397498]
[1767534830971,0.06578268,91210.0,91207.0,0.04397498]
[1767534832459,0.06578268,91210.0,91207.0,0.04392973]
[1767534832995,0.06578196,91211.0,91207.0,0.04392973]
[1767534833244,0.06578231,91210.0,91206.0,0.13166557]
[1767534833463,0.05678368,91209.0,91206.0,0.13166557]
[1767534834039,0.04581985,91209.0,91206.0,0.13166557]
[1767534835316,0.04482085,91209.0,91206.0,0.13166557]
[1767534835523,0.03288346,91212.0,91206.0,0.14253924]
[1767534835892,0.01096358,91211.0,91206.0,0.13157505]
[1767534836815,0.06578085,91212.0,91206.0,0.01096419]
[1767534837021,0.02402,91215.0,91207.0,0.01096407]
[1767534837198,0.02402,91215.0,91209.0,0.01096383]
[1767534837374,0.01096322,91214.0,91208.0,0.06578323]
[1767534838134,0.01096322,91214.0,91209.0,0.04501923]
[1767534838539,0.08979887,91215.0,91209.0,0.05598306]
[1767534838697,0.01096322,91214.0,91209.0,0.04501923]
[1767534839681,0.08979887,91215.0,91209.0,0.04501923]
[1767534840032,0.01096322,91214.0,91209.0,0.04501923]
[1767534840690,0.04676873,91199.0,91193.0,0.06628317]
[1767534840825,0.01096431,91205.0,91197.0,0.02192]
[1767534841024,0.01097396,91203.0,91197.0,0.02192]
[1767534841221,0.05482173,91205.0,91203.0,0.00065748]
[1767534841427,0.05482142,91206.0,91203.0,4.8e-07]
[1767534841673,0.01096371,91210.0,91203.0,0.0657875]
[1767534841874,0.01096383,91209.0,91203.0,0.0657875]
[1767534842064,0.01096383,91209.0,91203.0,4.8e-07]
[1767534842271,0.01096383,91209.0,91203.0,0.01096503]
[1767534842496,0.01096383,91209.0,91204.0,0.04509052]
[1767534842793,0.08770083,91212.0,91210.0,0.04509052]
[1767534842937,0.01096358,91211.0,91210.0,0.04509052]
[1767534843361,0.06578152,91211.0,91210.0,0.04509052]
[1767534843542,0.06578152,91211.0,91210.0,0.04474852]
[1767534844938,0.06578152,91211.0,91210.0,0.04446256]
[1767534845647,0.06578152,91211.0,91210.0,0.02254256]
[1767534846760,0.06578152,91211.0,91210.0,0.02249731]
[1767534847394,0.00996458,91211.0,91210.0,0.02249731]
[1767534848383,0.02192,91212.0,91210.0,0.02249731]
[1767534849245,0.0767374,91212.0,91210.0,0.02249731]
[1767534849756,0.05481794,91211.0,91210.0,0.02249731]
[1767534857798,0.05481794,91211.0,91207.0,0.04509052]
[1767534857799,0.01096383,91209.0,91207.0,0.04509052]
[1767534857952,0.06578341,91209.0,91207.0,0.04509052]
[1767534858157,0.01096383,91209.0,91207.0,0.04509052]
[1767534858901,0.06578275,91210.0,91207.0,0.04509052]
[1767534859258,0.01096358,91211.0,91207.0,0.04509052]
[1767534860022,0.01096371,91210.0,91207.0,0.04509052]
[1767534860159,0.06578174,91211.0,91207.0,0.04509052]
[1767534860362,0.01096371,91210.0,91206.0,0.13166557]
[1767534860562,0.08770122,91212.0,91208.0,0.13166557]
[1767534860763,0.01096358,91211.0,91208.0,0.13166557]
[1767534861661,0.08770122,91212.0,91208.0,0.13157505]
[1767534861868,0.03288346,91212.0,91208.0,0.13157505]
[1767534862067,0.0877009,91212.0,91208.0,0.13157505]
[1767534862222,0.03288346,91212.0,91208.0,0.17666557]
[1767534863286,0.02192,91212.0,91208.0,0.17666557]
[1767534863935,0.02192,91212.0,91208.0,0.13157505]
[1767534864371,0.03288346,91212.0,91208.0,0.13157505]
[1767534864715,0.04676873,91211.0,91208.0,0.08157505]
[1767534865983,0.03288346,91212.0,91208.0,0.08157505]
[1767534866394,0.04237262,91211.0,91208.0,0.08157505]
[1767534867348,0.03288346,91212.0,91208.0,0.08157505]
[1767534870847,0.03288346,91212.0,91208.0,0.1279302]
[1767534871005,0.0021,91215.0,91208.0,0.08157505]
[1767534871222,0.04447262,91215.0,91210.0,0.01096371]
[1767534871433,0.0021,91215.0,91209.0,0.054819]
[1767534871766,0.0021,91215.0,91210.0,0.01096371]
[1767534871969,0.0021,91215.0,91209.0,0.06578283]
[1767534872106,0.0021,91215.0,91210.0,0.01096371]
[1767534872313,0.04447262,91215.0,91210.0,0.01096371]
[1767534872983,0.04447262,91215.0,91210.0,0.05481827]
[1767534873134,0.0021,91215.0,91212.0,0.01096346]
[1767534873330,0.0021,91215.0,91213.0,0.04635515]
[1767534873530,0.0021,91215.0,91211.0,0.01096358]
[1767534873751,0.04237262,91214.0,91211.0,0.01096358]
[1767534874171,0.04237262,91214.0,91211.0,0.06578126]
[1767534874684,0.04237262,91214.0,91211.0,0.01096358]
[1767534875850,0.0021,91215.0,91212.0,0.01096346]
[1767534876198,0.0021,91215.0,91211.0,0.01096358]
[1767534876567,0.0021,91215.0,91212.0,0.01096346]
[1767534877821,0.0021,91215.0,91211.0,0.01096358]
[1767534878513,0.0021,91215.0,91212.0,0.04961102]
[1767534878831,0.0021,91215.0,91212.0,0.06057448]
[1767534879046,0.0021,91215.0,91212.0,0.04961102]
[1767534879972,0.0021,91215.0,91212.0,0.04861202]
[1767534880164,0.0021,91215.0,91212.0,0.04832627]
[1767534880745,0.0021,91215.0,91212.0,0.04804054]
[1767534881356,0.0130631,91215.0,91212.0,0.04804054]
[1767534881544,0.06787868,91215.0,91212.0,0.04804054]
[1767534886224,0.0130631,91215.0,91212.0,0.04804054]
[1767534886540,0.06787878,91215.0,91212.0,0.04804054]
[1767534887917,0.0439431,91213.0,91209.0,0.01096383]
[1767534888117,0.0439431,91213.0,91208.0,0.14735866]
[1767534889229,0.0439431,91213.0,91209.0,0.01096383]
[1767534889434,0.01096322,91214.0,91209.0,0.06057485]
[1767534889637,0.0130631,91215.0,91213.0,0.000999]
[1767534889843,0.0130631,91215.0,91209.0,0.06057485]
[1767534890409,0.0570062,91215.0,91209.0,0.01096383]
[1767534890604,0.0439431,91214.0,91209.0,0.01096383]
[1767534891030,0.0021,91215.0,91214.0,0.000954]
[1767534891434,0.0021,91215.0,91211.0,0.01096358]
[1767534891818,0.0460431,91215.0,91211.0,0.06578137]
[1767534892240,0.0450891,91215.0,91211.0,0.06578137]
[1767534893289,0.0450891,91215.0,91212.0,0.01096346]
[1767534893580,0.0450891,91215.0,91211.0,0.06578137]
[1767534893739,0.0450891,91215.0,91211.0,0.06549561]
[1767534894117,0.0450891,91215.0,91211.0,0.01096358]
[1767534894323,0.001146,91215.0,91212.0,0.04961102]
[1767534895662,0.001146,91215.0,91212.0,0.04861202]
[1767534897193,0.0121091,91215.0,91212.0,0.04861202]
[1767534898096,0.001146,91215.0,91212.0,0.04861202]
[1767534898255,0.0669251,91215.0,91212.0,0.04861202]
[1767534899308,0.05481657,91214.0,91212.0,0.04861202]
[1767534900975,0.0669251,91215.0,91212.0,0.04861202]
[1767534901601,0.05481662,91214.0,91212.0,0.04861202]
[1767534902314,0.0669251,91215.0,91212.0,0.04861202]
[1767534903402,0.0121091,91215.0,91212.0,0.04861202]
[1767534904440,0.0010772,91215.0,91212.0,0.04861202]
[1767534904692,0.0119715,91215.0,91211.0,0.04859561]
[1767534904998,0.0119715,91215.0,91209.0,0.06578281]
[1767534905408,0.06678724,91215.0,91210.0,0.04859561]
[1767534905534,0.06678724,91215.0,91210.0,0.03554077]
[1767534905965,0.01096322,91214.0,91210.0,0.03554077]
[1767534906594,0.0119715,91215.0,91210.0,0.03554077]
[1767534906815,0.06678705,91215.0,91210.0,0.03554077]
[1767534907682,0.06678705,91215.0,91207.0,0.06578438]
[1767534907881,0.06678705,91215.0,91209.0,0.04859561]
[1767534908117,0.01096322,91214.0,91209.0,0.05955944]
[1767534908313,0.01096334,91213.0,91209.0,0.04859561]
[1767534909389,0.06678705,91215.0,91209.0,0.04859561]
[1767534909601,0.06678705,91215.0,91213.0,0.000999]
[1767534909819,0.06678705,91215.0,91209.0,0.10341475]
[1767534910418,0.06678705,91215.0,91209.0,0.11437858]
[1767534910830,0.0119715,91215.0,91211.0,0.04859561]
[1767534911662,0.01096322,91214.0,91211.0,0.04859561]
[1767534911871,0.06678705,91215.0,91211.0,0.04859561]
[1767534912085,0.0119715,91215.0,91211.0,0.04859561]
[1767534912285,0.06678705,91215.0,91211.0,0.04859561]
[1767534912708,0.0119715,91215.0,91211.0,0.04859561]
[1767534913729,0.01096322,91214.0,91211.0,0.04859561]
[1767534914398,0.0010084,91215.0,91211.0,0.04859561]
[1767534914609,0.0010084,91215.0,91214.0,0.000999]
[1767534914819,0.0119715,91215.0,91211.0,0.04859561]
[1767534915239,0.01096322,91214.0,91211.0,0.04859561]
[1767534915868,0.0119715,91215.0,91211.0,0.04859561]
[1767534916257,0.01096322,91214.0,91211.0,0.04859561]
[1767534916469,0.06678746,91215.0,91211.0,0.04859561]
[1767534916983,0.0667871,91215.0,91211.0,0.04859561]
[1767534917801,0.01096322,91214.0,91211.0,0.04859561]
[1767534917971,0.06577979,91214.0,91211.0,0.04859561]
[1767534918191,0.01096322,91214.0,91211.0,0.04859561]
[1767534918394,0.0667871,91215.0,91211.0,0.04859561]
[1767534919018,0.0119715,91215.0,91211.0,0.04859561]
[1767534919221,0.01188098,91215.0,91211.0,0.04859561]
[1767534919382,0.01096322,91214.0,91211.0,0.04859561]
[1767534920533,0.06669658,91215.0,91211.0,0.04859561]
[1767534920702,0.00091788,91215.0,91212.0,0.01096346]
[1767534920886,0.0005516,91221.0,91218.0,0.06577641]
[1767534921092,0.0005516,91221.0,91218.0,0.05927264]
[1767534921286,0.0005516,91221.0,91219.0,0.05481305]
[1767534921633,0.0005516,91221.0,91218.0,0.06520462]
[1767534921923,0.0005516,91221.0,91218.0,0.06577645]
[1767534922471,0.0005516,91221.0,91216.0,0.06577682]
[1767534922604,0.000286,91218.0,91216.0,0.06577682]
[1767534923138,0.05481298,91220.0,91213.0,0.11437551]
[1767534923354,0.06577548,91220.0,91213.0,0.11437551]
[1767534923705,0.01096274,91218.0,91213.0,0.05955895]
[1767534923902,0.06577579,91219.0,91213.0,0.05955895]
[1767534924131,0.06577579,91219.0,91213.0,0.05927295]
[1767534924338,0.01096274,91218.0,91213.0,0.04830961]
[1767534924878,0.01096262,91219.0,91214.0,0.01096322]
[1767534925207,0.06577605,91220.0,91214.0,0.01096322]
[1767534925799,0.06577605,91220.0,91213.0,0.11408919]
[1767534925800,0.0657758,91219.0,91213.0,0.11408919]
[1767534926124,0.01096274,91218.0,91207.0,0.02192]
[1767534926242,4.07e-06,91213.0,91206.0,0.05482047]
[1767534926612,0.04660966,91214.0,91207.0,0.01096407]
[1767534926903,0.05481657,91214.0,91207.0,0.01096407]
[1767534928386,0.01096334,91213.0,91207.0,0.01096407]
[1767534928583,0.01087175,91213.0,91206.0,0.06578466]
[1767534928781,0.2192595,91217.0,91193.0,0.04916778]
[1767534928782,0.01096491,91201.0,91193.0,0.04916778]
[1767534928985,0.01096503,91199.0,91193.0,0.06013353]
[1767534929229,0.01096503,91199.0,91194.0,0.04859561]
[1767534929440,0.05482509,91200.0,91194.0,0.04859561]
[1767534929638,0.0103142,91197.0,91193.0,0.00057217]
[1767534929804,0.00336567,91197.0,91193.0,0.00057217]
[1767534930007,0.01096527,91197.0,91193.0,0.00057217]
[1767534930263,0.0657918,91197.0,91194.0,0.04859561]
[1767534930592,0.06579218,91197.0,91194.0,0.04859561]
[1767534930850,0.01096515,91198.0,91197.0,0.04656505]
[1767534931264,0.01096503,91199.0,91197.0,0.04556605]
[1767534931413,0.01096491,91198.0,91197.0,0.04556605]
[1767534931951,0.00996591,91198.0,91194.0,0.05653168]
[1767534932249,0.00996591,91198.0,91194.0,0.04556605]
[1767534932396,0.00996591,91198.0,91195.0,0.04556605]
[1767534933008,0.00996591,91198.0,91195.0,0.05653156]
[1767534933222,0.00996591,91198.0,91196.0,0.04556605]
[1767534933904,0.00996591,91198.0,91195.0,0.06579305]
[1767534934237,0.00996591,91198.0,91196.0,0.04862911]
[1767534936753,0.00996591,91198.0,91195.0,0.01096551]
[1767534936992,0.00996591,91198.0,91196.0,0.04862911]
[1767534937418,0.00996591,91198.0,91196.0,0.04763011]
[1767534940230,0.05482636,91197.0,91196.0,0.04763011]
[1767534940433,0.0547811,91197.0,91196.0,0.04763011]
[1767534941346,0.06479212,91198.0,91196.0,0.04763011]
[1767534941485,0.05482636,91197.0,91196.0,0.04763011]
[1767534942840,0.05482621,91198.0,91196.0,0.04763011]
[1767534943047,0.01096503,91199.0,91193.0,0.00057217]
[1767534943197,0.01096539,91196.0,91194.0,0.04862911]
[1767534943395,0.00996591,91195.0,91194.0,0.04862911]
[1767534944012,0.00065106,91194.0,91192.0,0.02192]
[1767534944245,0.06579246,91196.0,91193.0,0.04862911]
[1767534944415,0.06579139,91198.0,91193.0,0.04862911]
[1767534945157,0.01096515,91198.0,91193.0,0.04862911]
[1767534945516,0.01096539,91196.0,91193.0,0.04862911]
[1767534945721,0.01092013,91196.0,91193.0,0.04862911]
[1767534945921,0.06579207,91197.0,91193.0,0.04862911]
[1767534946119,0.0657912,91198.0,91193.0,0.04862911]
[1767534946418,0.01096539,91196.0,91193.0,0.04862911]
[1767534946779,0.06579239,91196.0,91193.0,0.04862911]
[1767534946966,0.01096527,91197.0,91193.0,0.04862911]
[1767534947178,0.06579183,91197.0,91193.0,0.04862911]
[1767534947405,0.06579183,91197.0,91192.0,0.07054911]
[1767534947538,0.01096539,91196.0,91193.0,0.04862911]
[1767534947742,0.06579261,91196.0,91193.0,0.04862911]
[1767534948720,0.06579172,91197.0,91193.0,0.04862911]
[1767534948923,0.01096527,91197.0,91193.0,0.04862911]
[1767534950282,0.06579093,91198.0,91193.0,0.04862911]
[1767534950498,0.01096539,91196.0,91193.0,0.04862911]
[1767534950654,0.01096527,91197.0,91193.0,0.04862911]
[1767534950858,0.01096539,91196.0,91193.0,0.04862911]
[1767534951287,0.06579248,91196.0,91193.0,0.04862911]
[1767534952913,0.01096539,91196.0,91193.0,0.04862911]
[1767534953712,0.06579265,91197.0,91193.0,0.04862911]
[1767534953893,0.01096539,91196.0,91193.0,0.04862911]
[1767534954093,0.05095715,91197.0,91193.0,0.04862911]
[1767534954973,0.01096527,91197.0,91193.0,0.04862911]
[1767534955138,0.06579205,91198.0,91193.0,0.04862911]
[1767534955730,0.01096515,91198.0,91193.0,0.05959486]
[1767534956754,0.01096515,91198.0,91193.0,0.04862911]
[1767534957257,0.06578924,91201.0,91198.0,0.000999]
[1767534957453,0.01096491,91200.0,91195.0,0.04862911]
[1767534957686,0.06578924,91201.0,91195.0,0.05959462]
[1767534958204,0.06578905,91202.0,91196.0,0.0595945]
[1767534958952,0.08770905,91202.0,91196.0,0.0595945]
[1767534960526,0.01096479,91201.0,91196.0,0.04862911]
[1767534960738,0.03288467,91202.0,91197.0,0.01096527]
[1767534960894,0.03288467,91202.0,91201.0,0.000999]
[1767534961082,0.03288467,91202.0,91198.0,0.04641075]
[1767534961599,0.02192,91202.0,91198.0,0.04641075]
[1767534961797,0.03288467,91202.0,91198.0,0.04641075]
[1767534963519,0.03188567,91202.0,91198.0,0.04641075]
[1767534963728,0.03179727,91202.0,91198.0,0.04641075]
[1767534963934,0.01096479,91201.0,91198.0,0.04641075]
[1767534964142,0.08662076,91202.0,91198.0,0.04641075]
[1767534965532,0.01096479,91201.0,91198.0,0.04641075]
[1767534965732,0.08662076,91202.0,91198.0,0.04641075]
[1767534965901,0.01096479,91201.0,91198.0,0.04641075]
[1767534966096,0.03179727,91202.0,91198.0,0.04641075]
[1767534966304,0.00572056,91200.0,91198.0,0.04641075]
[1767534969502,0.0208326,91202.0,91198.0,0.04641075]
[1767534970252,0.03179727,91202.0,91198.0,0.04641075]
[1767534970462,0.0208326,91202.0,91198.0,0.04641075]
[1767534970664,0.03179727,91202.0,91198.0,0.04641075]
[1767534971179,0.0208326,91202.0,91198.0,0.04641075]
[1767534972639,0.01096455,91203.0,91198.0,0.04641075]
[1767534973541,0.06578668,91204.0,91198.0,0.0573759]
[1767534973736,0.01096455,91203.0,91198.0,0.04641075]
[1767534973941,0.000999,91198.0,91185.0,0.0657998]
[1767534974066,0.00090846,91198.0,91187.0,0.01096647]
[1767534974265,0.06579455,91193.0,91186.0,0.08771953]
[1767534974704,0.06579455,91193.0,91187.0,0.01096647]
[1767534974705,0.01096575,91193.0,91187.0,0.01096647]
[1767534974907,0.01096563,91194.0,91188.0,0.01096635]
[1767534975174,0.01096575,91193.0,91187.0,0.01096647]
[1767534975605,0.01096551,91195.0,91186.0,0.03288659]
[1767534975942,0.01096563,91194.0,91189.0,0.01096623]
[1767534976223,0.06579358,91195.0,91188.0,0.05483136]
[1767534976752,0.01096551,91195.0,91189.0,0.01096623]
[1767534977224,0.01096563,91194.0,91190.0,0.04641075]
[1767534977449,0.06579318,91195.0,91190.0,0.04641075]
[1767534978465,0.06570264,91195.0,91190.0,0.04641075]
[1767534978799,0.01096551,91195.0,91190.0,0.04641075]
[1767534979239,0.01096563,91194.0,91190.0,0.04641075]
[1767534979419,0.06579241,91196.0,91190.0,0.04641075]
[1767534979621,0.01096551,91195.0,91190.0,0.04641075]
[1767534979945,0.06579241,91196.0,91190.0,0.05737686]
[1767534980169,0.06579207,91197.0,91192.0,0.04641075]
[1767534980853,0.06579238,91196.0,91192.0,0.04641075]
[1767534981152,0.06579336,91195.0,91192.0,0.04641075]
[1767534982315,0.05482817,91194.0,91192.0,0.04641075]
[1767534982920,0.06579609,91191.0,91188.0,0.04641075]
[1767534983151,0.0548301,91191.0,91186.0,0.02192]
[1767534983354,0.05478483,91191.0,91186.0,0.02192]
[1767534983588,0.06509976,91191.0,91186.0,0.02192]
[1767534983757,0.01096623,91189.0,91186.0,0.02192]
[1767534983937,0.06579785,91189.0,91186.0,0.02192]
[1767534984137,0.05483061,91190.0,91186.0,0.02192]
[1767534984307,0.06579633,91192.0,91189.0,0.000999]
[1767534984508,0.01096599,91191.0,91186.0,0.02192]
[1767534984711,0.06579556,91193.0,91186.0,0.03288659]
[1767534985377,0.01096587,91192.0,91187.0,0.01096647]
[1767534985710,0.01096599,91191.0,91186.0,0.02192]
[1767534986110,0.0657953,91192.0,91186.0,0.03288659]
[1767534987325,0.01096599,91191.0,91186.0,0.02192]
[1767534987524,0.01096611,91190.0,91186.0,0.02192]
[1767534987723,0.06579606,91191.0,91186.0,0.02192]
[1767534987724,0.01096599,91191.0,91186.0,0.03288659]
[1767534987930,0.01096599,91191.0,91187.0,0.04641075]
[1767534990668,0.06579529,91192.0,91187.0,0.04641075]
[1767534992108,0.01096575,91193.0,91188.0,0.04896178]